bitfinex/quotes_SOLUSD_20241113
["timestamp","ask_amount","ask_price","bid_price","bid_amount"]
[1731511373770,161.6,215.71,215.62,36.79998491]
[1731511373996,161.6,215.71,215.63,0.12549]
[1731511374371,161.6,215.71,215.58,36.79998491]
[1731511374372,36.79998491,215.68,215.58,36.79998491]
[1731511374572,36.79998491,215.66,215.57,0.12549]
[1731511375377,36.79998491,215.64,215.57,1.1597]
[1731511375588,20.0,215.61,215.54,0.451069]
[1731511375789,20.0,215.61,215.55,0.4639]
[1731511376378,20.0,215.63,215.55,0.4639]
[1731511376573,20.0,215.61,215.55,0.4639]
[1731511376779,20.0,215.61,215.55,1.1598]
[1731511377079,20.0,215.61,215.54,0.451069]
[1731511377080,20.0,215.59,215.54,0.451069]
[1731511377493,198.39998491,215.58,215.54,0.451069]
[1731511377678,4.6382,215.61,215.54,0.451069]
[1731511377679,20.0,215.55,215.54,0.451069]
[1731511379093,24.6392,215.55,215.54,0.451069]
[1731511379478,20.0,215.57,215.54,0.451069]
[1731511379876,20.0,215.55,215.54,0.451069]
[1731511380899,36.79998491,215.58,215.54,0.451069]
[1731511381082,36.79998491,215.62,215.54,0.451069]
[1731511381282,41.43788491,215.62,215.54,38.41085391]
[1731511381490,36.79998491,215.6,215.54,2.074769]
[1731511381689,41.43788491,215.62,215.54,2.074769]
[1731511382399,56.79998491,215.55,215.54,0.451069]
[1731511382695,56.79998491,215.55,215.45,36.79998491]
[1731511382696,20.0,215.52,215.46,0.4641]
[1731511382897,20.0,215.5,215.44,1.1603]
[1731511383074,202.58941591,215.49,215.39,38.42478491]
[1731511383272,36.79998491,215.45,215.35,36.79998491]
[1731511383481,4.6405,215.49,215.37,36.79998491]
[1731511383482,181.148931,215.44,215.37,36.79998491]
[1731511383683,36.79998491,215.47,215.35,1.1609]
[1731511383684,161.148931,215.43,215.39,36.79998491]
[1731511383882,161.148931,215.43,215.41,36.79998491]
[1731511384279,161.148931,215.49,215.42,0.22549]
[1731511384489,161.148931,215.56,215.48,36.79998491]
[1731511384675,161.148931,215.6,215.55,36.79998491]
[1731511384897,41.43708491,215.65,215.55,36.79998491]
[1731511384898,161.148931,215.59,215.55,36.79998491]
[1731511385398,161.148931,215.59,215.55,40.04738491]
[1731511386099,161.148931,215.58,215.57,36.79998491]
[1731511387005,161.148931,215.65,215.58,3.247]
[1731511387178,0.1,215.76,215.58,3.247]
[1731511387179,161.148931,215.68,215.63,36.79998491]
[1731511387389,161.6,215.72,215.67,36.79998491]
[1731511388281,161.6,215.72,215.58,2.3193]
[1731511388282,161.6,215.72,215.65,36.79998491]
[1731511388601,7.24184823,215.71,215.65,36.79998491]
[1731511389177,7.24184823,215.71,215.58,0.1]
[1731511389178,20.0,215.69,215.63,36.79998491]
[1731511389389,161.6,215.68,215.61,36.79998491]
[1731511390187,161.6,215.68,215.62,0.12549]
[1731511390383,44.04183314,215.71,215.65,36.79998491]
[1731511390384,161.6,215.67,215.65,36.79998491]
[1731511391289,161.6,215.7,215.66,3.2457]
[1731511391500,161.6,215.7,215.67,36.79998491]
[1731511391703,161.6,215.7,215.66,3.2457]
[1731511391904,161.6,215.7,215.67,36.79998491]
[1731511392401,161.6,215.69,215.67,36.79998491]
[1731511392603,161.6,215.69,215.66,3.2457]
[1731511393114,161.6,215.68,215.61,39.11888491]
[1731511393288,36.79998491,215.67,215.61,2.3189]
[1731511393492,168.82765262,215.68,215.61,2.3189]
[1731511393707,168.82765262,215.68,215.62,0.12549]
[1731511393908,161.6,215.67,215.62,0.12549]
[1731511394587,161.6,215.67,215.63,36.79998491]
[1731511394790,161.6,215.68,215.63,36.79998491]
[1731511395096,161.6,215.68,215.61,2.3189]
[1731511395097,161.6,215.68,215.61,40.04648491]
[1731511395419,161.6,215.68,215.63,36.79998491]
[1731511396086,198.39998491,215.67,215.59,36.79998491]
[1731511396289,205.62669172,215.67,215.58,0.12549]
[1731511396514,161.6,215.66,215.61,36.79998491]
[1731511396698,161.6,215.75,215.59,39.11918491]
[1731511397011,168.83485589,215.74,215.7,36.79998491]
[1731511397212,161.6,215.73,215.7,0.9271]
[1731511397410,161.6,215.73,215.64,36.79998491]
[1731511397703,36.79998491,215.71,215.65,2.3185]
[1731511397910,36.79998491,215.71,215.65,3.2459]
[1731511398089,20.0,215.7,215.65,3.2459]
[1731511398295,161.6,215.72,215.66,36.79998491]
[1731511398513,161.6,215.72,215.62,36.79998491]
[1731511398514,198.39998491,215.72,215.62,36.79998491]
[1731511398700,36.79998491,215.68,215.58,36.79998491]
[1731511398907,161.6,215.67,215.58,36.79998491]
[1731511399199,36.79998491,215.64,215.57,3.2471]
[1731511399417,36.79998491,215.62,215.52,40.04768491]
[1731511399618,161.6,215.61,215.54,36.79998491]
[1731511399914,161.6,215.61,215.55,0.12549]
[1731511400103,161.6,215.61,215.54,36.79998491]
[1731511400309,36.79998491,215.6,215.52,3.2477]
[1731511400496,36.79998491,215.58,215.5,1.05349]
[1731511401309,161.47451,215.5,215.45,2.3206]
[1731511401520,36.79998491,215.48,215.4,2.3212]
[1731511401811,36.79998491,215.42,215.34,2.3218]
[1731511402013,36.79998491,215.4,215.34,2.3218]
[1731511402187,161.47451,215.39,215.34,2.3218]
[1731511402393,161.47451,215.38,215.37,36.79998491]
[1731511402712,36.79998491,215.51,215.38,0.1]
[1731511402900,161.47451,215.5,215.42,36.79998491]
[1731511403210,12.6523,215.57,215.48,36.79998491]
[1731511403211,161.47451,215.56,215.48,36.79998491]
[1731511403414,4.6383,215.6,215.47,3.2487]
[1731511403415,198.27449491,215.55,215.47,3.2487]
[1731511403723,161.47451,215.55,215.48,36.92547491]
[1731511404100,161.47451,215.55,215.48,0.12549]
[1731511404303,161.47451,215.54,215.51,0.12549]
[1731511404503,161.47451,215.54,215.52,36.79998491]
[1731511404807,161.47451,215.61,215.53,0.12549]
[1731511405002,161.47451,215.6,215.53,0.12549]
[1731511405392,198.27449491,215.6,215.53,1.6237]
[1731511405813,161.47451,215.59,215.54,36.92547491]
[1731511406905,161.47451,215.58,215.55,1.6237]
[1731511407100,161.47451,215.58,215.56,36.92547491]
[1731511407315,36.79998491,215.66,215.56,36.92547491]
[1731511407517,161.6,215.65,215.56,36.92547491]
[1731511407726,168.82930674,215.65,215.56,36.92547491]
[1731511407897,36.79998491,215.62,215.55,1.1598]
[1731511408722,36.79998491,215.64,215.55,1.1598]
[1731511409427,36.79998491,215.64,215.55,1.6237]
[1731511409723,41.43738491,215.64,215.55,1.6237]
[1731511410014,36.79998491,215.62,215.55,1.6237]
[1731511410400,36.79998491,215.6,215.53,0.4639]
[1731511410601,161.6,215.59,215.53,0.4639]
[1731511411317,161.6,215.59,215.53,1.6238]
[1731511412097,161.6,215.59,215.56,36.79998491]
[1731511412298,161.6,215.58,215.56,36.79998491]
[1731511412524,161.6,215.57,215.54,36.79998491]
[1731511413048,161.6,215.63,215.56,36.79998491]
[1731511413321,161.6,215.63,215.59,36.79998491]
[1731511413523,161.6,215.62,215.59,36.79998491]
[1731511413711,161.6,215.62,215.58,1.6234]
[1731511414114,161.6,215.62,215.54,0.4639]
[1731511414315,7.22930674,215.65,215.58,36.79998491]
[1731511414316,161.6,215.61,215.58,36.79998491]
[1731511414518,161.6,215.6,215.58,36.79998491]
[1731511414723,161.6,215.67,215.59,36.79998491]
[1731511415016,161.6,215.66,215.6,0.1]
[1731511415224,161.6,215.66,215.62,0.12549]
[1731511415724,0.7934451,215.73,215.63,1.623]
[1731511415725,161.6,215.72,215.63,1.623]
[1731511415930,161.6,215.71,215.63,1.623]
[1731511416231,161.6,215.71,215.68,36.79998491]
[1731511416397,161.6,215.7,215.68,36.79998491]
[1731511416795,11.6831,215.84,215.68,36.79998491]
[1731511416796,161.6,215.72,215.68,36.79998491]
[1731511417011,161.6,215.8,215.72,36.79998491]
[1731511417220,161.6,215.79,215.75,36.79998491]
[1731511417405,166.2342,215.79,215.73,36.79998491]
[1731511417604,166.2342,215.79,215.64,0.12549]
[1731511417605,36.79998491,215.77,215.64,0.12549]
[1731511417906,161.6,215.76,215.66,36.79998491]
[1731511418108,161.6,215.76,215.68,36.79998491]
[1731511418903,161.6,215.76,215.7,36.79998491]
[1731511419109,161.6,215.75,215.72,36.79998491]
[1731511419422,161.6,215.75,215.7,36.79998491]
[1731511419812,161.6,215.74,215.7,36.79998491]
[1731511420328,161.6,215.73,215.72,36.79998491]
[1731511420546,41.43408491,215.79,215.68,36.79998491]
[1731511420817,41.43408491,215.79,215.68,37.26358491]
[1731511420818,36.79998491,215.77,215.68,37.26358491]
[1731511421020,161.6,215.76,215.68,37.26358491]
[1731511421207,161.6,215.76,215.68,38.42268491]
[1731511421531,20.0,215.75,215.66,37.26358491]
[1731511421828,161.6,215.74,215.66,36.79998491]
[1731511422006,161.6,215.63,215.57,36.79998491]
[1731511422207,161.6,215.62,215.56,31.6996]
[1731511422417,161.6,215.62,215.57,1.6235]
[1731511423001,161.6,215.62,215.58,0.12549]
[1731511423725,161.6,215.62,215.58,36.92547491]
[1731511423914,161.6,215.68,215.61,0.22549]
[1731511424222,161.6,215.67,215.66,36.79998491]
[1731511424438,161.6,215.75,215.66,36.79998491]
[1731511424618,161.6,215.74,215.66,36.79998491]
[1731511424815,161.6,215.74,215.67,1.6227]
[1731511425013,161.6,215.74,215.68,0.12549]
[1731511425223,20.0,215.73,215.68,0.12549]
[1731511426812,161.6,215.72,215.68,0.12549]
[1731511427014,161.6,215.71,215.68,0.12549]
[1731511427226,161.6,215.7,215.67,0.12549]
[1731511427411,161.6,215.69,215.68,1.6227]
[1731511427618,161.6,215.72,215.68,1.6227]
[1731511428012,161.6,215.71,215.68,1.6227]
[1731511428215,161.6,215.7,215.64,36.79998491]
[1731511428515,36.79998491,215.66,215.6,1.1595]
[1731511428710,36.79998491,215.71,215.52,0.1]
[1731511428711,36.79998491,215.61,215.55,1.6236]
[1731511428937,36.79998491,215.61,215.55,1.1597]
[1731511428938,161.6,215.6,215.55,1.1597]
[1731511431042,161.6,215.6,215.56,36.92547491]
[1731511431209,161.6,215.64,215.58,36.79998491]
[1731511431631,161.6,215.64,215.59,0.12549]
[1731511432635,161.6,215.64,215.58,36.79998491]
[1731511432808,161.6,215.64,215.54,4.4319613]
[1731511432809,161.6,215.64,215.57,1.6235]
[1731511433005,36.79998491,215.63,215.55,0.4639]
[1731511433206,36.79998491,215.61,215.55,0.4639]
[1731511433426,36.79998491,215.61,215.56,0.12549]
[1731511434630,161.6,215.62,215.56,36.92547491]
[1731511435021,161.6,215.62,215.57,1.6235]
[1731511435332,161.6,215.62,215.51,12.0262]
[1731511435333,161.6,215.56,215.5,0.464]
[1731511435565,161.6,215.56,215.44,13.1466]
[1731511435566,23.776884,215.5,215.39,30.6348]
[1731511435720,0.1,215.56,215.39,31.099]
[1731511435721,36.79998491,215.46,215.39,31.099]
[1731511436024,36.79998491,215.44,215.39,1.1606]
[1731511436226,161.6,215.43,215.39,1.1606]
[1731511436438,161.6,215.43,215.4,36.79998491]
[1731511436736,161.6,215.49,215.43,0.12549]
[1731511436936,161.6,215.48,215.44,1.7245]
[1731511437132,161.6,215.48,215.44,1.6245]
[1731511437319,161.6,215.48,215.45,0.12549]
[1731511437515,36.79998491,215.47,215.44,1.6245]
[1731511437941,161.6,215.48,215.45,0.12549]
[1731511438128,161.6,215.48,215.47,0.1]
[1731511438327,161.6,215.51,215.47,0.1]
[1731511438646,161.6,215.51,215.45,37.12547491]
[1731511438819,161.6,215.51,215.46,1.6244]
[1731511439535,161.6,215.51,215.47,0.12549]
[1731511440836,161.6,215.51,215.5,0.1]
[1731511441037,161.6,215.57,215.5,1.624]
[1731511441338,0.1,215.68,215.52,0.22549]
[1731511441339,161.6,215.56,215.52,0.22549]
[1731511441530,161.6,215.56,215.53,36.79998491]
[1731511441841,161.6,215.61,215.54,36.79998491]
[1731511442017,161.6,215.6,215.57,0.12549]
[1731511442223,161.6,215.64,215.58,36.79998491]
[1731511442523,161.6,215.68,215.62,0.12549]
[1731511442723,161.6,215.67,215.62,0.12549]
[1731511442930,161.6,215.67,215.63,1.623]
[1731511443333,161.6,215.67,215.62,0.12549]
[1731511443539,161.6,215.67,215.61,36.23667491]
[1731511443721,161.6,215.68,215.6,0.1]
[1731511443922,161.6,215.7,215.67,36.79998491]
[1731511444127,36.79998491,215.8,215.65,0.1]
[1731511444128,161.6,215.69,215.65,0.1]
[1731511444327,36.79998491,215.8,215.69,36.79998491]
[1731511444328,161.6,215.79,215.69,36.79998491]
[1731511444531,161.6,215.78,215.65,0.1]
[1731511444731,36.79998491,215.77,215.68,36.79998491]
[1731511445038,36.79998491,215.77,215.69,0.4636]
[1731511445541,166.2343,215.78,215.7,36.79998491]
[1731511445542,161.6,215.78,215.7,36.79998491]
[1731511446427,161.6,215.77,215.7,36.79998491]
[1731511446823,36.79998491,215.75,215.69,1.6226]
[1731511447025,161.6,215.77,215.7,36.79998491]
[1731511447248,20.0,215.76,215.7,36.79998491]
[1731511448241,20.0,215.76,215.69,1.159]
[1731511448630,20.0,215.76,215.7,36.79998491]
[1731511448937,161.6,215.77,215.72,36.79998491]
[1731511449541,198.39998491,215.77,215.69,1.159]
[1731511449730,20.0,215.76,215.7,36.79998491]
[1731511449937,161.6,215.77,215.74,36.79998491]
[1731511450132,161.6,215.78,215.76,36.79998491]
[1731511450326,161.6,215.9,215.73,0.1]
[1731511450576,161.6,215.89,215.83,36.79998491]
[1731511450761,161.6,215.88,215.86,22.62254418]
[1731511450951,161.6,215.87,215.82,22.62254418]
[1731511451153,161.6,215.86,215.8,22.62254418]
[1731511451449,0.1,215.96,215.73,0.1]
[1731511451450,161.6,215.85,215.82,0.12549]
[1731511451640,22.62254418,215.97,215.79,45.3151]
[1731511451842,22.62254418,215.95,215.85,22.62254418]
[1731511452040,22.62254418,215.95,215.8,0.22549]
[1731511452041,161.6,215.94,215.8,0.22549]
[1731511452254,231.26313772,215.95,215.77,2.3172]
[1731511452255,0.1,215.9,215.77,2.3172]
[1731511452553,45.24508836,215.78,215.74,20.0]
[1731511452744,36.81095362,215.75,215.73,24.4748854]
[1731511453077,161.6,215.81,215.73,24.4748854]
[1731511453249,36.81095362,215.74,215.73,4.4748854]
[1731511453447,36.81095362,215.82,215.71,90.0]
[1731511453651,161.6,215.91,215.74,24.16784463]
[1731511453652,16.28365362,215.8,215.74,24.16784463]
[1731511453839,161.6,215.91,215.74,24.16784463]
[1731511453840,36.81095362,215.78,215.75,20.92631226]
[1731511454046,36.81095362,215.93,215.75,20.92631226]
[1731511454047,36.81095362,215.76,215.75,20.0]
[1731511454239,36.81095362,215.76,215.71,4.5532815]
[1731511454442,36.81095362,215.74,215.65,4.16784463]
[1731511454965,36.81095362,215.74,215.64,36.81095362]
[1731511454966,36.81095362,215.7,215.64,4.44952924]
[1731511455267,36.81095362,215.79,215.69,36.81095362]
[1731511455862,36.81095362,215.77,215.67,36.81095362]
[1731511456442,36.81095362,215.74,215.65,12.764]
[1731511456845,161.6,215.81,215.65,12.764]
[1731511456846,36.81095362,215.7,215.65,12.764]
[1731511457042,36.81095362,215.67,215.65,12.764]
[1731511457260,0.1,215.78,215.58,12.5286]
[1731511457261,161.6,215.74,215.58,12.5286]
[1731511457561,161.6,215.74,215.58,53.50739825]
[1731511457562,36.81095362,215.68,215.58,53.50739825]
[1731511457766,36.81095362,215.68,215.58,58.126754]
[1731511458095,36.81095362,215.6,215.52,4.16784463]
[1731511458246,36.81095362,215.58,215.5,16.9378]
[1731511458866,198.41095362,215.66,215.56,36.81095362]
[1731511459051,161.6,215.65,215.56,36.81095362]
[1731511459367,161.7,215.65,215.56,36.81095362]
[1731511459664,0.1,215.63,215.56,36.81095362]
[1731511459839,0.1,215.58,215.51,36.81095362]
[1731511460040,36.81095362,215.55,215.45,36.81095362]
[1731511460239,161.6,215.54,215.51,36.81095362]
[1731511460444,161.6,215.53,215.51,36.81095362]
[1731511460844,161.6,215.53,215.49,36.81095362]
[1731511461054,161.6,215.53,215.43,36.81095362]
[1731511461055,0.2,215.51,215.43,36.81095362]
[1731511461357,0.1,215.49,215.43,36.81095362]
[1731511461939,0.1,215.49,215.42,36.81095362]
[1731511462146,0.1,215.47,215.46,36.81095362]
[1731511462562,0.1,215.47,215.38,36.81095362]
[1731511462563,0.2,215.47,215.44,36.81095362]
[1731511462956,0.1,215.47,215.44,36.81095362]
[1731511463155,0.1,215.46,215.44,36.81095362]
[1731511463462,161.6,215.45,215.44,36.81095362]
[1731511463764,0.1,215.45,215.42,36.81095362]
[1731511463945,0.2,215.43,215.39,36.81095362]
[1731511464145,161.6,215.42,215.31,4.49451551]
[1731511464356,0.1,215.4,215.26,12.3302]
[1731511464574,0.1,215.36,215.25,4.46834]
[1731511464863,161.6,215.36,215.25,5.39698845]
[1731511465069,161.6,215.36,215.25,4.46834]
[1731511465070,0.1,215.35,215.25,4.46834]
[1731511465246,0.1,215.33,215.19,12.3302]
[1731511465446,161.148931,215.31,215.11,67.0]
[1731511465669,0.1,215.24,215.19,4.44126188]
[1731511465848,161.148931,215.23,215.19,4.44126188]
[1731511466349,161.148931,215.23,215.11,67.0]
[1731511466549,31.0123,215.35,215.11,67.0]
[1731511466550,161.148931,215.26,215.11,67.9291641]
[1731511466853,161.148931,215.29,215.11,142.47873844]
[1731511467061,31.1123,215.35,215.11,142.47873844]
[1731511467062,161.148931,215.33,215.14,70.0]
[1731511467361,161.148931,215.32,215.15,0.92877652]
[1731511467557,161.348931,215.32,215.12,5.17350593]
[1731511467761,0.1,215.29,215.11,71.54957434]
[1731511468083,161.148931,215.29,215.12,70.0]
[1731511468377,161.148931,215.29,215.13,0.92890575]
[1731511468968,61.88240863,215.3,215.28,36.93551272]
[1731511469149,0.1,215.32,215.29,36.93551272]
[1731511469350,61.88240863,215.34,215.12,23.48570904]
[1731511469351,0.2,215.3,215.12,20.0]
[1731511469557,61.88240863,215.29,215.12,20.0]
[1731511470154,61.88240863,215.28,215.12,4.57240333]
[1731511470473,61.98240863,215.28,215.27,73.87102544]
[1731511470773,4.7421,215.42,215.27,73.87102544]
[1731511470774,161.6,215.29,215.27,73.87102544]
[1731511470963,0.1,215.35,215.27,73.87102544]
[1731511470964,161.7,215.34,215.27,73.87102544]
[1731511471164,161.6,215.33,215.27,36.93551272]
[1731511471366,0.1,215.32,215.27,36.93551272]
[1731511471554,0.1,215.29,215.12,20.0]
[1731511471753,161.6,215.28,215.12,20.0]
[1731511471964,161.6,215.28,215.12,20.92903939]
[1731511472169,0.1,215.25,215.17,20.0]
[1731511472369,161.7,215.24,215.11,67.0]
[1731511472579,161.6,215.23,215.16,36.93551272]
[1731511472758,62.33347763,215.24,215.16,36.93551272]
[1731511472959,0.1,215.41,215.16,36.93551272]
[1731511472960,0.1,215.28,215.16,36.93551272]
[1731511473177,62.43347763,215.27,215.16,36.93551272]
[1731511473373,62.43347763,215.27,215.26,73.87102544]
[1731511473569,0.1,215.27,215.26,73.87102544]
[1731511473881,62.33347763,215.31,215.26,73.87102544]
[1731511474061,62.33347763,215.31,215.3,36.93551272]
[1731511474381,62.43347763,215.31,215.3,36.93551272]
[1731511474574,62.33347763,215.31,215.3,36.93551272]
[1731511474883,62.33347763,215.33,215.3,36.93551272]
[1731511475079,62.33347763,215.36,215.33,36.93551272]
[1731511475258,62.33347763,215.36,215.35,36.93551272]
[1731511475466,0.1,215.39,215.35,73.87102544]
[1731511475467,161.6,215.38,215.35,73.87102544]
[1731511475657,161.6,215.43,215.37,73.87102544]
[1731511475879,0.1,215.46,215.37,36.93551272]
[1731511475880,161.7,215.42,215.37,36.93551272]
[1731511476066,161.7,215.42,215.41,36.93551272]
[1731511476269,0.2,215.39,215.38,36.93551272]
[1731511476472,0.1,215.35,215.2,20.0]
[1731511478667,0.1,215.36,215.35,36.93551272]
[1731511478861,62.43347763,215.36,215.35,36.93551272]
[1731511479143,0.1,215.32,215.28,20.0]
[1731511479285,0.1,215.32,215.31,36.93551272]
[1731511480180,62.33347763,215.34,215.31,37.74679026]
[1731511480181,62.43347763,215.34,215.31,37.74679026]
[1731511480378,62.43347763,215.34,215.33,36.93551272]
[1731511480676,0.1,215.34,215.33,37.74671491]
[1731511480876,0.1,215.35,215.33,36.93551272]
[1731511481175,0.1,215.38,215.23,4.59839135]
[1731511481176,0.1,215.33,215.23,4.59839135]
[1731511481377,0.1,215.33,215.16,20.0]
[1731511481580,0.1,215.33,215.24,0.88336354]
[1731511481966,161.7,215.35,215.32,36.93551272]
[1731511482282,161.8,215.34,215.33,0.70491086]
[1731511482672,161.7,215.34,215.33,0.70491086]
[1731511483279,161.6,215.34,215.33,37.64042358]
[1731511483566,161.7,215.34,215.33,0.70491086]
[1731511483873,0.1,215.38,215.33,74.5759363]
[1731511484065,0.1,215.38,215.37,73.87102544]
[1731511484290,62.33347763,215.39,215.37,73.87102544]
[1731511484464,62.33347763,215.39,215.38,36.93551272]
[1731511485669,0.1,215.38,215.37,36.93551272]
[1731511485873,0.1,215.38,215.37,73.87102544]
[1731511486882,62.33347763,215.39,215.37,73.87102544]
[1731511487082,0.1,215.39,215.38,0.66137314]
[1731511487480,0.1,215.39,215.38,0.60836458]
[1731511487730,31.8449,215.44,215.38,0.5949301]
[1731511487731,62.33347763,215.43,215.38,0.5949301]
[1731511487937,0.1,215.4,215.37,36.93551272]
[1731511488127,0.1,215.4,215.39,36.93551272]
[1731511488288,62.43347763,215.42,215.39,36.93551272]
[1731511488511,62.43347763,215.42,215.41,36.93551272]
[1731511488870,62.43347763,215.42,215.41,22.70857001]
[1731511490992,62.42465505,215.42,215.41,22.70857001]
[1731511491176,62.32465505,215.42,215.41,22.70857001]
[1731511491380,62.22465505,215.42,215.41,22.70857001]
[1731511491656,62.32465505,215.42,215.41,22.70857001]
[1731511492384,0.1,215.43,215.41,22.70857001]
[1731511492568,0.1,215.42,215.41,22.70857001]
[1731511493188,0.1,215.43,215.41,22.70857001]
[1731511493597,0.1,215.47,215.41,22.70857001]
[1731511493822,31.61,215.49,215.46,45.41714002]
[1731511494091,13.302,215.52,215.48,45.41714002]
[1731511494092,0.1,215.52,215.48,45.41714002]
[1731511494269,0.1,215.55,215.51,22.70857001]
[1731511494466,0.1,215.52,215.48,22.70857001]
[1731511494686,62.22465505,215.54,215.48,22.70857001]
[1731511495000,62.22465505,215.54,215.53,22.70857001]
[1731511495496,62.32465505,215.54,215.38,0.1]
[1731511495666,0.1,215.51,215.38,22.70857001]
[1731511495871,62.22465505,215.53,215.38,22.70857001]
[1731511495872,0.1,215.46,215.38,22.70857001]
[1731511496075,62.22465505,215.53,215.26,82.5509]
[1731511496076,0.1,215.43,215.26,12.5509]
[1731511496324,62.22465505,215.42,215.29,0.1]
[1731511496500,62.22465505,215.44,215.29,0.1]
[1731511496861,0.1,215.49,215.43,22.70857001]
[1731511496979,31.7834,215.57,215.38,22.70857001]
[1731511496980,62.32465505,215.48,215.38,22.70857001]
[1731511497182,0.1,215.44,215.26,17.23459417]
[1731511497401,0.1,215.42,215.27,0.92840263]
[1731511497771,0.1,215.42,215.41,22.70857001]
[1731511498791,30.2625,215.42,215.41,22.70857001]
[1731511499795,30.1625,215.42,215.41,22.70857001]
[1731511500383,0.1,215.46,215.41,22.70857001]
[1731511500585,0.1,215.48,215.45,22.70857001]
[1731511500904,0.1,215.48,215.39,20.0]
[1731511501134,44.5267,215.5,215.39,20.0]
[1731511501135,32.3021,215.5,215.43,30.0]
[1731511501280,32.27400376,215.5,215.43,30.0]
[1731511501600,12.2246,215.57,215.44,20.0]
[1731511501792,16.9636,215.57,215.43,30.0]
[1731511502158,0.1,215.51,215.43,30.0]
[1731511502389,0.1,215.47,215.43,30.0]
[1731511502779,161.6,215.46,215.43,30.0]
[1731511502785,131.6,215.43,215.23,0.1]
[1731511502974,131.6,215.42,215.24,0.1]
[1731511503385,130.939,215.42,215.24,0.1]
[1731511503609,130.939,215.42,215.26,0.1]
[1731511503930,130.939,215.42,215.28,0.1]
[1731511504218,130.939,215.51,215.27,0.1]
[1731511504505,33.2415,215.49,215.27,0.1]
[1731511504884,33.2415,215.49,215.26,0.1]
[1731511505098,0.1,215.47,215.23,0.1]
[1731511505393,23.876884,215.4,215.23,4.61361332]
[1731511505697,0.1,215.42,215.23,4.61361332]
[1731511505698,23.776884,215.34,215.23,4.61361332]
[1731511505900,130.939,215.33,215.23,4.61361332]
[1731511506289,130.939,215.33,215.17,0.1]
[1731511506486,130.939,215.32,215.18,0.1]
[1731511506693,130.939,215.32,215.15,4.19855352]
[1731511507097,12.9246,215.3,215.13,4.59248686]
[1731511507481,130.939,215.29,215.11,67.0]
[1731511507842,130.939,215.28,215.11,67.0]
[1731511508711,131.039,215.27,215.11,67.0]
[1731511509000,0.1,215.22,215.11,67.0]
[1731511509205,0.1,215.18,215.11,67.0]
[1731511509402,130.939,215.17,215.11,67.0]
[1731511509613,130.939,215.16,215.11,67.0]
[1731511510317,130.939,215.16,214.96,0.1]
[1731511510318,63.487931,215.09,214.96,0.1]
[1731511510489,63.487931,215.08,214.96,0.1]
[1731511510682,63.487931,215.08,214.93,1.02990683]
[1731511511008,63.487931,215.08,214.98,0.1]
[1731511511181,63.487931,215.08,214.93,1.02990683]
[1731511511384,63.487931,215.08,214.91,17.79649665]
[1731511511588,63.487931,215.07,214.94,0.1]
[1731511511800,0.1,215.18,214.96,0.1]
[1731511512006,161.7,215.17,214.96,0.1]
[1731511512421,0.1,215.13,214.91,17.79649665]
[1731511512773,161.6,215.12,214.92,4.10037835]
[1731511512907,161.6,215.12,214.93,0.1]
[1731511513112,161.6,215.12,214.91,4.61419665]
[1731511513301,0.1,215.11,214.91,0.1]
[1731511513479,161.6,215.12,214.91,0.1]
[1731511514097,0.1,215.11,214.91,0.1]
[1731511514299,161.6,215.1,214.91,0.1]
[1731511514515,161.6,215.09,214.94,0.1]
[1731511515197,161.6,215.09,214.91,0.1]
[1731511515411,0.1,215.04,214.88,0.451069]